fUSD/lending_fUSD_20240408
["ID","MTS","AMOUNT","RATE_DAILY","PERIOD"]
[321894942,1712589047279,-218.35,0.00025642,2]
[321894943,1712589047288,-218.35,0.00025648,2]
[321894944,1712589047298,-417.68,0.00025648,2]
[321894945,1712589047307,-218.35,0.00025655,2]
[321894946,1712589047317,-218.35,0.00025662,2]
[321894947,1712589047326,-218.35,0.00025669,2]
[321894948,1712589047336,-218.35,0.00025675,2]
[321894949,1712589047345,-218.35,0.00025682,2]
[321894950,1712589047354,-417.68,0.00025688,2]
[321894951,1712589047364,-218.35,0.00025689,2]
[321894952,1712589047373,-218.35,0.00025696,2]
[321894953,1712589047383,-218.35,0.00025702,2]
[321894954,1712589047394,-218.35,0.00025709,2]
[321894955,1712589047404,-218.35,0.00025716,2]
[321894956,1712589047415,-352.18,0.00025781,2]
[321894957,1712589047426,-13861.0,0.00025895,2]
[321894958,1712589047437,-100000.0,0.000259,2]
[321894959,1712589047448,-663.7324,0.0002593,2]
[321894960,1712589047460,-275.83737108,0.00025999,2]
[321894961,1712589047470,-3813.9371447,0.00025999,2]
[321894962,1712589047481,-17876.19751007,0.00026,2]
[321894963,1712589047490,-539.0,0.00026027,2]
[321894964,1712589047500,-169.1734385,0.00026036,2]
[321894965,1712589047511,-254.14645215,0.00026192,2]
[321894966,1712589047520,-2715.0081,0.00026192,2]
[321894967,1712589047531,-1000.0,0.00026264,2]
[321894968,1712589047540,-2202.53025562,0.00026266,2]
[321894969,1712589047550,-19227.32470046,0.0002629,2]
[321894970,1712589047560,-662.44657426,0.00026291,2]
[321894971,1712589047570,-276.99767365,0.00026291,2]
[321894972,1712589047579,-3814.01378617,0.00026291,2]
[321894973,1712589047588,-485.70839377,0.00026296,2]
[321894974,1712589047597,-193.70754222,0.00026296,2]
[321894975,1712589047607,-155.0,0.00026296,2]
[321894976,1712589047616,-165.5544226,0.00026296,2]
[321894977,1712589047625,-4309.13332723,0.00026296,2]
[321894978,1712589047635,-233.12932164,0.00026296,2]
[321894979,1712589047645,-407.63765975,0.00026296,2]
[321894980,1712589047655,-255.91009224,0.00026296,2]
[321894981,1712589047664,-217.28613312,0.00026296,2]
[321894982,1712589047674,-2621.58302011,0.00026296,2]
[321894983,1712589047683,-199.98845264,0.00026296,2]
[321894984,1712589047694,-199.60579167,0.00026296,2]
[321894985,1712589047703,-318.57381182,0.00026297,2]
[321894986,1712589047714,-261.40204284,0.00026297,2]
[321894987,1712589047725,-156.73583069,0.00026297,2]
[321894988,1712589047735,-188.80872208,0.00026298,2]
[321894989,1712589047748,-230.11483414,0.00026298,2]
[321894990,1712589047757,-155.0,0.00026298,2]
[321894991,1712589047770,-155.18159834,0.00026298,2]
[321894992,1712589047781,-2168.36692202,0.00026298,2]
[321894993,1712589047791,-265.68120969,0.00026298,2]
[321894994,1712589047801,-155.0,0.00026298,2]
[321894995,1712589047811,-2376.74529774,0.00026298,2]
[321894996,1712589047821,-155.0,0.00026298,2]
[321894997,1712589047832,-155.0,0.00026298,2]
[321894998,1712589047841,-206.59266165,0.00026299,2]
[321894999,1712589047851,-1988.2429921,0.00026299,2]
[321895000,1712589047861,-28508.52586341,0.000263,2]
[321895001,1712589047870,-663.73241,0.0002637,2]
[321895002,1712589047879,-1935.16451652,0.00026371,2]
[321895003,1712589047889,-25668.84126619,0.000264,2]
[321895004,1712589047898,-19348.71622264,0.00026426,2]
[321895005,1712589047908,-1000.0,0.0002661,2]
[321895006,1712589047918,-336.96,0.00026654,2]
[321895007,1712589047927,-150.0,0.00026662,2]
[321895008,1712589047936,-663.04,0.00026682,2]
[321895009,1712589047946,-905.33907216,0.00026725,3]
[321895010,1712589048242,-500.0,0.00026784,2]
[321895011,1712589048259,-173.33033892,0.000268,2]
[321895012,1712589048269,-180.29099605,0.000268,5]
[321895013,1712589048278,-783.82011566,0.000268,2]
[321895014,1712589048288,-4690.47606172,0.000268,2]
[321895015,1712589048297,-153.03493833,0.000268,2]
[321895016,1712589048306,-214.88561578,0.000268,2]
[321895017,1712589048316,-250.0,0.00026851,2]
[321895018,1712589048326,-245.324,0.00026851,2]
[321895019,1712589048336,-151.0,0.00026851,2]
[321895020,1712589048346,-160.678,0.00026851,2]
[321895021,1712589048355,-150.0,0.00026851,2]
[321895022,1712589048364,-150.782,0.00026851,2]
[321895023,1712589048373,-267.982,0.00026851,2]
[321895024,1712589048383,-265.539,0.00026851,2]
[321895025,1712589048392,-250.0,0.00026851,2]
[321895026,1712589048402,-158.278,0.00026851,2]
[321895027,1712589048411,-276.618,0.00026851,2]
[321895028,1712589048421,-2286.0,0.00026851,2]
[321895029,1712589048431,-460.0,0.00026851,2]
[321895030,1712589048440,-965.0,0.00026851,2]
[321895031,1712589048450,-295.832,0.00026851,2]
[321895032,1712589048459,-150.0,0.00026851,2]
[321895033,1712589048468,-805.0,0.00026851,2]
[321895034,1712589048477,-435.0,0.00026851,2]
[321895035,1712589048486,-607.0,0.00026851,2]
[321895036,1712589048496,-1944.0,0.00026851,2]
[321895037,1712589048505,-280.0,0.00026851,2]
[321895038,1712589048515,-152.655,0.00026851,2]
[321895039,1712589048525,-1139.0,0.00026851,2]
[321895040,1712589048534,-3037.0,0.00026851,2]
[321895041,1712589048544,-406.204,0.00026851,2]
[321895042,1712589048553,-1469.0,0.00026851,2]
[321895043,1712589048562,-2435.0,0.00026851,2]
[321895044,1712589048572,-1634.0,0.00026851,2]
[321895045,1712589048581,-214.0,0.00026851,2]
[321895046,1712589048590,-386.844,0.00026851,2]
[321895047,1712589048600,-442.0,0.00026851,2]
[321895048,1712589048609,-2459.0,0.00026851,2]
[321895049,1712589048618,-4790.0,0.00026851,2]
[321895050,1712589048627,-1022.276,0.00026851,2]
[321895051,1712589048636,-11307.39868154,0.0002688,2]
[321895052,1712589048646,-1000.0,0.00026899,2]
[321895053,1712589048655,-103322.71034852,0.000269,3]
[321895054,1712589048664,-428192.9880194,0.000269,3]
[321895079,1712589459578,640.22,0.00024496,15]
[321895081,1712589762860,-187.0,0.00027,10]
[321895082,1712589949704,-481.0,0.00027,10]
[321895083,1712589970215,14821.24114706,0.00028,17]
[321895084,1712589983221,33399.08911489,0.00028021,17]
[321895085,1712589999053,600.2,0.00024329,15]
[321895093,1712590057965,150.0,0.00028021,17]
[321895094,1712590114212,150.0,0.0002802,18]
[321895096,1712590159519,150.0,0.00028,20]
[321895147,1712590232118,-295.94921399,0.00020865,2]
[321895149,1712590232128,-161.14075989,0.00020866,2]
[321895151,1712590232140,-479.09899997,0.00020866,2]
[321895153,1712590232149,-407.93685318,0.00020866,2]
[321895155,1712590232159,-89.83624428,0.00020867,2]
[321895225,1712590233544,-442.07640495,0.00020867,2]
[321895226,1712590233554,-51.74256391,0.00020868,2]
[321895227,1712590233566,-334.66799233,0.00020868,2]
[321895228,1712590233577,-2191.98,0.00020868,2]
[321895229,1712590233590,-580.30817084,0.00020868,2]
[321895230,1712590233599,-426.14410958,0.00020869,2]
[321895231,1712590233609,-779.51255381,0.00020869,2]
[321895232,1712590233618,-162.84379118,0.00020871,2]
[321895233,1712590233627,-3081.19122304,0.00020968,2]
[321895234,1712590233679,-1240.24920229,0.00020968,2]
[321895235,1712590233689,-209.10763965,0.00021126,2]
[321895236,1712590233699,-232.10508438,0.00021127,2]
[321895237,1712590233709,-13344.7057,0.00021128,2]
[321895238,1712590233719,-7127.18364561,0.00021233,2]
[321895239,1712590233729,-156.18,0.00021244,2]
[321895240,1712590233738,-162.84379118,0.00022057,2]
[321895241,1712590233748,-367.06,0.00022084,2]
[321895242,1712590233757,-705.59837989,0.00023113,2]
[321895243,1712590233767,-162.84379118,0.00023243,2]
[321895244,1712590233777,-2280.49,0.00023977,2]
[321895245,1712590233787,-150.0,0.00023984,2]
[321895246,1712590233797,-628.79,0.00023991,2]
[321895247,1712590233807,-250.0,0.00024004,2]
[321895248,1712590233818,-600.58,0.00024079,2]
[321895249,1712590233829,-297.27,0.00024105,2]
[321895250,1712590233838,-166.06,0.00024286,2]
[321895251,1712590233848,-367.06,0.00024348,2]
[321895252,1712590233858,-162.84379118,0.00024428,2]
[321895253,1712590233868,-166.06,0.00024444,2]
[321895254,1712590233878,-196.58505653,0.00024494,2]
[321895255,1712590233889,-186.86861086,0.00024495,2]
[321895256,1712590233899,-1023.6155917,0.00024496,2]
[321895257,1712590233909,-1034.14826321,0.00024496,2]
[321895258,1712590233920,-9898.48061049,0.00024496,2]
[321895259,1712590233936,-471.43544263,0.00024496,2]
[321895260,1712590233976,-7426.07388644,0.00024496,2]
[321895261,1712590233989,-4216.5386159,0.00024496,2]
[321895262,1712590234000,-287.74989474,0.00024496,2]
[321895263,1712590234010,-843.86390582,0.00024496,2]
[321895264,1712590234020,-308.26825811,0.00024511,2]
[321895265,1712590234036,-308.26825811,0.00024514,2]
[321895266,1712590234047,-1057.94926508,0.0002452,2]
[321895267,1712590234060,-469.27345916,0.00024523,2]
[321895268,1712590234070,-1057.94926508,0.00024523,2]
[321895269,1712590234079,-469.27345916,0.00024524,2]
[321895270,1712590234090,-308.26825811,0.00024526,2]
[321895271,1712590234101,-1057.94926508,0.00024527,2]
[321895272,1712590234110,-469.27345916,0.00024528,2]
[321895273,1712590234120,-308.26825811,0.00024531,2]
[321895274,1712590234129,-308.26825811,0.00024533,2]
[321895275,1712590234139,-308.26825811,0.00024534,2]
[321895276,1712590234150,-1057.94926508,0.00024542,2]
[321895277,1712590234160,-469.27345916,0.00024546,2]
[321895278,1712590234170,-308.26825811,0.00024548,2]
[321895279,1712590234179,-1057.94926508,0.00024555,2]
[321895280,1712590234189,-469.27345916,0.00024557,2]
[321895281,1712590234199,-469.27345916,0.00024563,2]
[321895282,1712590234209,-307.95571435,0.00024567,2]
[321895283,1712590234388,-0.31254376,0.00024567,2]
[321895284,1712590234398,-204.64505826,0.00024569,2]
[321895285,1712590234408,-191.68500466,0.0002457,2]
[321895286,1712590234418,-284.43640377,0.00024571,2]
[321895287,1712590234428,-893.63037205,0.00024573,2]
[321895294,1712590238425,645.0,0.00025,15]
[321895324,1712590238901,-164.31889303,0.00024573,2]
[321895326,1712590238911,-1057.94926508,0.00024583,2]
[321895328,1712590238922,-146.03886472,0.00024585,2]
[321895330,1712590238935,-911.91040036,0.00024585,2]
[321895332,1712590238944,-469.27345916,0.00024591,2]
[321895334,1712590238954,-1057.94926508,0.00024592,2]
[321895336,1712590238964,-469.27345916,0.00024594,2]
[321895338,1712590238973,-469.27345916,0.00024596,2]
[321895340,1712590238983,-308.26825811,0.00024599,2]
[321895342,1712590238993,-166.06,0.00024602,2]
[321895344,1712590239002,-152.5,0.00024693,2]
[321895346,1712590239012,-152.5,0.00024704,2]
[321895349,1712590239021,-152.5,0.00024716,2]
[321895351,1712590239033,-152.5,0.00024727,2]
[321895352,1712590239043,-152.5,0.00024738,2]
[321895354,1712590239054,-152.5,0.00024749,2]
[321895357,1712590239063,-166.06,0.0002476,2]
[321895358,1712590239073,-152.5,0.0002476,2]
[321895360,1712590239086,-152.5,0.00024772,2]
[321895363,1712590239095,-152.5,0.00024783,2]
[321895365,1712590239105,-1000.0,0.00024787,2]
[321895367,1712590239114,-152.5,0.00024794,2]
[321895369,1712590239123,-2223.24347368,0.000248,2]
[321895371,1712590239132,-433.7017,0.000248,2]
[321895373,1712590239142,-152.5,0.00024805,2]
[321895375,1712590239151,-152.5,0.00024817,2]
[321895377,1712590239160,-3070.0,0.000249,2]
[321895379,1712590239169,-529.0,0.000249,2]
[321895381,1712590239178,-166.06,0.00024919,2]
[321895383,1712590239187,-5800.0,0.00024989,2]
[321895385,1712590239196,-2602.89125943,0.00025,2]
[321895387,1712590239206,-224.98789402,0.00025,2]
[321895389,1712590239215,-5000.0,0.00025,2]
[321895391,1712590239224,-166.06,0.00025077,2]
[321895393,1712590239233,-166.06,0.00025235,2]
[321895395,1712590239242,-166.06,0.00025393,2]
[321895397,1712590239251,-152.0,0.00025479,3]
[321895399,1712590239260,-540.16040797,0.00025516,2]
[321895401,1712590239269,-166.06,0.00025551,2]
[321895403,1712590239281,-3102.0,0.000256,5]
[321895405,1712590239290,-162.84379118,0.00025614,2]
[321895407,1712590239299,-191.71509019,0.00026,2]
[321895408,1712590239308,-2592.89402331,0.00026,2]
[321895415,1712590239358,-64598.5322676,0.00026,2]
[321895417,1712590239370,-3073.7629553,0.00026,2]
[321895423,1712590239422,-1787.97367765,0.00026,2]
[321895432,1712590239496,-574.3092933,0.00026,2]
[321895435,1712590239507,-500.0,0.00026,2]
[321895437,1712590239522,-451.63535208,0.00026,2]
[321895439,1712590239536,-2753.23955619,0.00026,2]
[321895548,1712590240614,-1798.54449012,0.00026,2]
[321895550,1712590240626,-445.0809626,0.00026,2]
[321895561,1712590240723,-593.31353462,0.00026,2]
[321895564,1712590240735,-3598.45,0.00026,2]
[321895566,1712590240746,-27372.83091761,0.00026,2]
[321895581,1712590240880,-1280.8395774,0.00026,2]
[321895584,1712590240900,-29324.32642662,0.00026,2]
[321895933,1712590244417,-997.8061742,0.00026,2]
[321895941,1712590244478,-6010.81782379,0.00026,2]
[321895943,1712590244490,-6304.48299119,0.00026,2]
[321895950,1712590244547,-1207693.0741968,0.00026,2]
[321895954,1712590244575,-3221.39682505,0.00026,2]
[321896087,1712590247469,-200.0,0.00025899,2]
[321896088,1712590247479,-425.5582199,0.00025999,2]
[321896089,1712590247488,-8485.12626231,0.00026,2]
[321896090,1712590247532,-3461.69087825,0.00026,2]
[321896091,1712590247562,-17787.89433882,0.00026,2]
[321896110,1712590249382,-546.05764824,0.00026,2]
[321896111,1712590249595,-84297.43903283,0.00026,2]
[321896112,1712590249643,-288.69388,0.00026,2]
[321896137,1712590308899,1424.62019633,0.00023405,20]
[321896138,1712590309755,-4000.0,0.00026987,10]
[321896139,1712590309793,-187.0,0.00027,10]
[321896141,1712590331135,2000.0,0.00027397,30]
[321896142,1712590331418,2000.0,0.00027671,30]
[321896143,1712590331711,2000.0,0.00027945,30]
[321896151,1712590360402,498161.66236947,0.00027,30]
[321896152,1712590360428,190992.92434483,0.00027,30]
[321896153,1712590390412,700.0,0.000261,30]
[321896154,1712590486440,562.68,0.00024527,15]
[321896156,1712590650262,252.28282289,0.00027944,25]
[321896158,1712590979865,527.51,0.00024329,15]
[321896163,1712591189916,500.0,0.00027397,30]
[321896164,1712591190222,500.0,0.00027671,30]
[321896165,1712591190535,191.3383511,0.00027945,30]
[321896195,1712591346768,2000.0,0.00027397,30]
[321896281,1712591432258,-362.35522605,0.00020016,2]
[321896282,1712591432267,-165.75124624,0.00020017,2]
[321896283,1712591432276,-4321.44042533,0.00020018,2]
[321896284,1712591432286,-1253.70769458,0.00020018,2]
[321896285,1712591432295,-640.23975986,0.00020018,2]
[321896286,1712591432304,-1626.0,0.00020019,2]
[321896287,1712591432313,-312.67656806,0.00020019,2]
[321896288,1712591432322,-620.43039615,0.00020019,2]
[321896289,1712591432332,-549.43032654,0.0002002,2]
[321896290,1712591432341,-275.563401,0.00020021,2]
[321896291,1712591432351,-150.0,0.0002023,2]
[321896292,1712591432361,-150.0,0.00020521,2]
[321896293,1712591432370,-550.0,0.00021,3]
[321896294,1712591432379,-2884.77,0.00021,2]
[321896295,1712591432392,-499.99,0.00021,2]
[321896296,1712591432401,-150.99,0.00021,2]
[321896297,1712591432410,-362.14,0.00021794,2]
[321896298,1712591432419,-600.0,0.00023,3]
[321896299,1712591432429,-540.24,0.00023379,2]
[321896300,1712591432438,-500.0,0.00023387,2]
[321896301,1712591432448,-210.77,0.00023422,2]
[321896302,1712591432457,-4797.82728898,0.00023474,2]
[321896304,1712591432769,-466.6032,0.00023474,2]
[321896305,1712591432781,-7489.39951102,0.00023474,2]
[321896306,1712591432791,-1648.16,0.00023483,2]
[321896307,1712591432800,-600.95,0.00023497,2]
[321896308,1712591432809,-1173.58,0.00023511,2]
[321896309,1712591432819,-250.0,0.00023517,2]
[321896310,1712591432827,-589.97838862,0.00023535,2]
[321896311,1712591432851,-1965.93161138,0.00023535,2]
[321896312,1712591432861,-240.75,0.00023541,2]
[321896313,1712591432870,-2751.0,0.00023552,2]
[321896314,1712591432879,-153.74,0.0002356,2]
[321896315,1712591432889,-250.0,0.00023567,2]
[321896316,1712591432898,-150.0,0.00023578,2]
[321896317,1712591432907,-153.74,0.00023633,2]
[321896318,1712591432916,-153.74,0.00023705,2]
[321896319,1712591432925,-153.74,0.00023777,2]
[321896320,1712591432934,-153.74,0.00023849,2]
[321896321,1712591432943,-181.16211618,0.0002389,2]
[321896322,1712591432952,-157.14414491,0.00023915,2]
[321896323,1712591432961,-162.84379118,0.00023916,2]
[321896324,1712591432970,-385.43,0.00023916,2]
[321896325,1712591432980,-153.74,0.00023921,2]
[321896326,1712591432991,-200.0,0.00023927,2]
[321896327,1712591433000,-7582.1,0.0002393,2]
[321896328,1712591433009,-153.74,0.00023994,2]
[321896329,1712591433018,-362.14,0.00024058,2]
[321896330,1712591433028,-153.74,0.00024066,2]
[321896331,1712591433037,-14931.86166925,0.0002413,2]
[321896332,1712591433046,-153.74,0.00024138,2]
[321896333,1712591433055,-153.74,0.0002421,2]
[321896334,1712591433064,-153.74,0.00024283,2]
[321896335,1712591433074,-1923.56030465,0.00024314,2]
[321896336,1712591433083,-153.74,0.00024355,2]
[321896337,1712591433094,-153.74,0.00024427,2]
[321896338,1712591433103,-451.03177265,0.00024438,2]
[321896339,1712591433112,-153.74,0.00024499,2]
[321896340,1712591433122,-197.55491696,0.00024507,2]
[321896341,1712591433132,-197.55491696,0.00024515,2]
[321896342,1712591433141,-197.55491696,0.00024518,2]
[321896343,1712591433150,-197.55491696,0.00024546,2]
[321896344,1712591433159,-236.8255,0.00024549,2]
[321896345,1712591433169,-2656.11224873,0.00024555,2]
[321896346,1712591433178,-197.55491696,0.00024557,2]
[321896347,1712591433188,-197.55491696,0.00024557,2]
[321896348,1712591433197,-197.55491696,0.00024559,2]
[321896349,1712591433207,-197.55491696,0.00024565,2]
[321896350,1712591433216,-197.55491696,0.0002457,2]
[321896351,1712591433225,-153.74,0.00024571,2]
[321896352,1712591433235,-1000.0,0.00024595,2]
[321896353,1712591433249,-153.74,0.00024644,2]
[321896354,1712591433258,-153.74,0.00024716,2]
[321896355,1712591433266,-425.5582199,0.00024785,2]
[321896356,1712591433275,-153.74,0.00024788,2]
[321896357,1712591433285,-166.57598756,0.00024798,2]
[321896358,1712591433294,-26574.65838097,0.00024799,2]
[321896359,1712591433314,-6754.62543641,0.00024799,2]
[321896360,1712591433328,-9151.383212,0.00024799,2]
[321896361,1712591433337,-2223.24347368,0.000248,2]
[321896362,1712591433347,-247.37,0.00024861,2]
[321896363,1712591433358,-2602.89125943,0.00025,2]
[321896364,1712591433368,-650.0,0.00025,3]
[321896365,1712591433377,-150.0,0.00025309,2]
[321896366,1712591433390,-150.0,0.00025493,2]
[321896367,1712591433400,-300.0,0.00025531,2]
[321896368,1712591433409,-390.0,0.000256,5]
[321896369,1712591433418,-940.2971,0.000257,2]
[321896370,1712591433428,-1272.77903301,0.000257,2]
[321896371,1712591433438,-1245.54391,0.0002574,2]
[321896372,1712591433447,-1000.0,0.000258,2]
[321896373,1712591433457,-100000.0,0.000258,2]
[321896374,1712591433466,-11139.57830542,0.000258,2]
[321896375,1712591433478,-317.82899603,0.00025828,2]
[321896376,1712591433489,-150.0,0.0002589,4]
[321896377,1712591433498,-150.0,0.0002589,4]
[321896378,1712591433507,-150.48177089,0.0002589,4]
[321896379,1712591433516,-150.0,0.0002589,4]
[321896380,1712591433526,-264.18707855,0.0002589,4]
[321896381,1712591433536,-150.0,0.0002589,4]
[321896382,1712591433545,-150.0,0.0002589,4]
[321896383,1712591433555,-150.0,0.0002589,4]
[321896384,1712591433564,-150.0,0.0002589,4]
[321896385,1712591433574,-150.0,0.0002589,4]
[321896386,1712591433583,-155.74038737,0.0002589,4]
[321896387,1712591433593,-209975.9135,0.000259,2]
[321896388,1712591433602,-150.0,0.00025928,4]
[321896389,1712591433611,-300.0,0.00025956,2]
[321896390,1712591433621,-150.0,0.00025965,4]
[321896391,1712591433630,-300.0,0.0002597,2]
[321896392,1712591433641,-150.0,0.0002598,4]
[321896393,1712591433650,-1100.51632605,0.00025998,2]
[321896394,1712591433660,-300.35346579,0.00025998,2]
[321896395,1712591433671,-656.80189,0.00025998,2]
[321896396,1712591433681,-202.59210874,0.00025998,2]
[321896397,1712591433690,-464.63554701,0.00025998,2]
[321896398,1712591433700,-213.1274998,0.00025999,2]
[321896399,1712591433711,-155.0,0.00025999,2]
[321896400,1712591433721,-155.27580194,0.00025999,2]
[321896401,1712591433731,-395.06251376,0.00025999,2]
[321896402,1712591433742,-500.0,0.00025999,2]
[321896403,1712591433752,-539.0,0.00026,2]
[321896404,1712591433762,-150.0,0.00026002,4]
[321896405,1712591433771,-150.0,0.0002601,4]
[321896406,1712591433781,-1272.77903294,0.0002603,2]
[321896407,1712591433790,-150.0,0.0002604,4]
[321896408,1712591433799,-1000.0,0.0002605,2]
[321896409,1712591433809,-150.0,0.0002607,4]
[321896410,1712591433819,-500.0,0.00026072,2]
[321896411,1712591433828,-150.0,0.00026077,4]
[321896412,1712591433838,-167.11,0.00026077,2]
[321896413,1712591433847,-150.0,0.00026096,4]
[321896414,1712591433856,-150.0,0.00026115,4]
[321896415,1712591433865,-1000.0,0.00026117,2]
[321896416,1712591433875,-150.0,0.0002613,4]
[321896417,1712591433885,-9615.40819753,0.00026149,2]
[321896418,1712591433906,-1524.17010789,0.00026149,2]
[321896419,1712591433915,-150.0,0.00026152,4]
[321896420,1712591433925,-150.0,0.0002616,4]
[321896421,1712591433934,-500.0,0.00026162,2]
[321896422,1712591433943,-1000.0,0.00026185,2]
[321896423,1712591433952,-150.0,0.00026189,4]
[321896424,1712591433961,-1047.89867561,0.00026194,2]
[321896425,1712591433972,-452.10132439,0.00026194,2]
[321896426,1712591433980,-800.0,0.00026194,2]
[321896427,1712591433990,-150.0,0.00026227,4]
[321896428,1712591434000,-247.37,0.00026231,2]
[321896429,1712591434009,-150.0,0.0002625,4]
[321896430,1712591434019,-150.0,0.0002625,4]
[321896431,1712591434028,-150.0,0.0002625,4]
[321896432,1712591434038,-200.0,0.00026252,2]
[321896433,1712591434047,-1000.0,0.00026252,2]
[321896434,1712591434057,-200.0,0.00026252,2]
[321896435,1712591434066,-104.11273502,0.00026252,2]
[321896444,1712591438447,-395.88726498,0.00026252,2]
[321896445,1712591438458,-200.0,0.00026252,2]
[321896446,1712591438468,-150.0,0.00026252,2]
[321896447,1712591438478,-150.0,0.00026264,4]
[321896448,1712591438488,-2555.91,0.00026274,2]
[321896449,1712591438497,-300.0,0.00026291,2]
[321896450,1712591438506,-602.0,0.000263,2]
[321896451,1712591438517,-150.0,0.00026301,4]
[321896452,1712591438527,-150.0,0.00026301,4]
[321896453,1712591438538,-362.14,0.00026322,2]
[321896454,1712591438548,-150.0,0.00026339,4]
[321896455,1712591438558,-150.0,0.0002634,4]
[321896456,1712591438570,-300.0,0.00026357,2]
[321896457,1712591438580,-1272.77903294,0.00026359,2]
[321896458,1712591438590,-1000.0,0.0002636,2]
[321896459,1712591438600,-150.0,0.0002637,4]
[321896460,1712591438609,-150.0,0.00026376,4]
[321896461,1712591438619,-500.0,0.00026396,2]
[321896462,1712591438630,-150.0,0.00026413,4]
[321896464,1712591438639,-150.0,0.00026421,2]
[321896466,1712591438649,-152.0,0.00026422,4]
[321896468,1712591438659,-150.0,0.0002643,4]
[321896471,1712591438669,-157.077077,0.00026436,2]
[321896473,1712591438679,-150.0,0.00026451,4]
[321896475,1712591438688,-300.0,0.00026455,2]
[321896477,1712591438702,-1000.0,0.00026467,2]
[321896479,1712591438711,-150.0,0.00026488,4]
[321896481,1712591438720,-150.0,0.0002649,4]
[321896483,1712591438729,-150.0,0.0002649,2]
[321896485,1712591438740,-3913.04265634,0.00026498,2]
[321896489,1712591438770,-7226.53564908,0.00026498,2]
[321896491,1712591438779,-150.0,0.00026507,4]
[321896493,1712591438787,-150.0,0.0002652,4]
[321896495,1712591438797,-150.0,0.00026526,4]
[321896497,1712591438806,-164.11253645,0.0002653,2]
[321896499,1712591438816,-500.0,0.00026539,2]
[321896501,1712591438825,-150.0,0.00026561,2]
[321896503,1712591438835,-150.0,0.00026563,4]
[321896506,1712591438848,-150.0,0.00026565,2]
[321896508,1712591438860,-150.0,0.00026571,2]
[321896510,1712591438874,-1000.0,0.00026575,2]
[321896513,1712591438886,-150.0,0.00026589,2]
[321896515,1712591438898,-150.0,0.00026593,2]
[321896517,1712591438908,-150.0,0.000266,4]
[321896519,1712591438920,-150.0,0.0002661,4]
[321896522,1712591438932,-150.0,0.0002661,4]
[321896524,1712591438945,-70.00894532,0.0002661,4]
[321896756,1712591441085,-150.0,0.00026004,2]
[321896758,1712591441096,-150.0,0.0002638,2]
[321896760,1712591441106,-9.12639055,0.00026547,2]
[321896763,1712591441119,-1583.17687038,0.00026547,2]
[321896765,1712591441130,-79.99105468,0.0002661,4]
[321896767,1712591441141,-150.0,0.00026615,2]
[321896769,1712591441152,-150.0,0.00026617,2]
[321896771,1712591441163,-150.0,0.00026617,2]
[321896773,1712591441174,-300.0,0.00026622,2]
[321896776,1712591441184,-150.0,0.00026627,2]
[321896778,1712591441195,-169.1734385,0.0002663,2]
[321896780,1712591441206,-150.0,0.00026631,2]
[321896782,1712591441216,-300.0,0.00026635,2]
[321896784,1712591441226,-300.0,0.00026637,2]
[321896786,1712591441237,-150.0,0.00026638,4]
[321896789,1712591441248,-150.0,0.00026649,2]
[321896791,1712591441258,-150.0,0.0002665,2]
[321896793,1712591441270,-150.0,0.00026665,2]
[321896795,1712591441281,-150.0,0.00026675,4]
[321896797,1712591441291,-200.0,0.00026683,2]
[321896800,1712591441302,-1000.0,0.00026683,2]
[321896802,1712591441312,-500.0,0.00026683,2]